[Event "44th Chess Olympiad Open 2022"]
[Site "Chennai"]
[Date "2022.08.08"]
[Round "10.71"]
[White "Al Mutairi, Abdullah F"]
[Black "Mlawa, Hemed"]
[Result "0-1"]
[WhiteElo "1916"]
[BlackElo "1896"]
[Annotator "NA RC"]
[PlyCount "90"]
[EventDate "2022.??.??"]
[TimeControl "60"]

1. e4 {[%emt 0:00:07]} c6 {[%emt 0:00:06]} 2. d4 {[%emt 0:00:02]} d5 {[%emt 0:
00:00]} 3. Nd2 {[%emt 0:01:11]} dxe4 {[%emt 0:00:08]} 4. Nxe4 {[%emt 0:00:04]}
Nf6 {[%emt 0:00:11]} 5. Ng3 {[%emt 0:00:35]} Bg4 {[%emt 0:02:12]} 6. Nf3 {
[%emt 0:00:25]} e6 {[%emt 0:00:13]} 7. c3 {[%emt 0:00:31]} Qc7 {[%emt 0:01:11]}
8. h3 {[%emt 0:00:28]} Bxf3 {[%emt 0:00:14]} 9. Qxf3 {[%emt 0:00:01]} Nbd7 {
[%emt 0:00:46]} 10. Bd3 {[%emt 0:00:41]} Bd6 {[%emt 0:00:21]} 11. O-O {[%emt 0:
00:00]} O-O {[%emt 0:00:15]} 12. Nh5 {[%emt 0:00:12]} Qa5 {[%emt 0:06:16]} 13.
Nxf6+ {[%emt 0:00:56]} Nxf6 {[%emt 0:00:18]} 14. Re1 {[%emt 0:00:27]} Qh5 {
[%emt 0:04:42]} 15. g4 {[%emt 0:01:40]} Qd5 {[%emt 0:00:19]} 16. Qd1 {[%emt 0:
00:00]} Bc7 {[%emt 0:00:20]} 17. g5 {[%emt 0:00:31]} Nd7 {[%emt 0:01:07]} 18.
Qh5 {[%emt 0:01:33]} g6 {[%emt 0:02:03]} 19. Qg4 {[%emt 0:01:11]} e5 {[%emt 0:
00:00]} 20. Be3 {[%emt 0:04:03]} Rae8 {[%emt 0:01:18]} 21. c4 {[%emt 0:01:02]}
Qe6 {[%emt 0:00:59]} 22. Qh4 {[%emt 0:07:04]} e4 {[%emt 0:01:09]} 23. Bf1 {
[%emt 0:02:32]} f5 {[%emt 0:19:39]} 24. Bf4 {[%emt 0:04:47]} Bxf4 {[%emt 0:00:
00]} 25. Qxf4 {[%emt 0:00:02]} Nb6 {[%emt 0:01:06]} 26. b3 {[%emt 0:00:21]} Rd8
{[%emt 0:00:44]} 27. Rad1 {[%emt 0:00:18]} Rfe8 {[%emt 0:04:44]} 28. a4 {
[%emt 0:00:20]} a5 {[%emt 0:00:59]} 29. Qc7 {[%emt 0:00:45]} Nd7 {[%emt 0:00:
00]} 30. Qxa5 {[%emt 0:00:42]} f4 {[%emt 0:00:22]} 31. Bg2 {[%emt 0:01:52]} b6
{[%emt 0:03:51]} 32. Qc3 {[%emt 0:01:13]} Qf5 {[%emt 0:00:22]} 33. h4 {[%emt 0:
00:00]} f3 {[%emt 0:00:27]} 34. Bf1 {[%emt 0:04:35]} Qg4+ {[%emt 0:00:13]} 35.
Kh2 {[%emt 0:00:28]} Qxh4+ {[%emt 0:00:24]} 36. Bh3 {[%emt 0:00:23]} Qxf2+ {
[%emt 0:00:44]} 37. Kh1 {[%emt 0:00:06]} Qh4 {[%emt 0:04:38]} 38. Kh2 {[%emt 0:
00:00]} Qf4+ {[%emt 0:01:35]} 39. Kh1 {[%emt 0:00:37]} e3 {[%emt 0:00:08]} 40.
c5 {[%emt 0:05:55]} Qg3 {[%emt 0:03:40]} 41. Qc4+ {[%emt 0:30:48]} Kg7 {
[%emt 0:30:23]} 42. Qf1 {[%emt 0:02:45]} e2 {[%emt 0:01:06]} 43. Qxf3 {[%emt 0:
00:00]} Qxf3+ {[%emt 0:00:17]} 44. Bg2 {[%emt 0:00:04]} Qh5+ {[%emt 0:00:21]}
45. Kg1 {[%emt 0:00:03]} exd1=Q {[%emt 0:00:33]} 0-1

[Event "44th Chess Olympiad Open 2022"]
[Site "Chennai"]
[Date "2022.08.08"]
[Round "10.71"]
[White "Alzamil, Abdulaziz"]
[Black "Charles, Cleophas"]
[Result "1-0"]
[WhiteElo "1871"]
[BlackElo "1593"]
[Annotator "NA RC"]
[PlyCount "189"]
[EventDate "2022.??.??"]
[TimeControl "60"]

1. d4 {[%emt 0:00:01]} Nf6 {[%emt 0:00:13]} 2. Nf3 {[%emt 0:00:07]} d5 {
[%emt 0:00:30]} 3. Bf4 {[%emt 0:00:05]} Bf5 {[%emt 0:00:28]} 4. e3 {[%emt 0:00:
00]} e6 {[%emt 0:00:38]} 5. c3 {[%emt 0:01:09]} c5 {[%emt 0:02:25]} 6. Nbd2 {
[%emt 0:00:33]} Nc6 {[%emt 0:02:06]} 7. Qb3 {[%emt 0:01:55]} Qc8 {[%emt 0:00:
00]} 8. Bb5 {[%emt 0:02:19]} Be7 {[%emt 0:05:29]} 9. Ne5 {[%emt 0:00:40]} O-O {
[%emt 0:02:03]} 10. Bxc6 {[%emt 0:03:30]} bxc6 {[%emt 0:06:42]} 11. Qa4 {
[%emt 0:00:43]} cxd4 {[%emt 0:01:31]} 12. Nxc6 {[%emt 0:01:54]} Qd7 {[%emt 0:
00:00]} 13. Nxe7+ {[%emt 0:00:16]} Qxe7 {[%emt 0:00:09]} 14. exd4 {[%emt 0:00:
00]} Nh5 {[%emt 0:02:30]} 15. Be3 {[%emt 0:01:59]} Bd3 {[%emt 0:06:47]} 16. Qd1
{[%emt 0:06:07]} Qh4 {[%emt 0:01:41]} 17. Qf3 {[%emt 0:22:01]} f5 {[%emt 0:00:
00]} 18. g3 {[%emt 0:04:04]} Qh3 {[%emt 0:02:07]} 19. Bg5 {[%emt 0:02:06]} Bc2
{[%emt 0:04:37]} 20. Rc1 {[%emt 0:08:21]} Be4 {[%emt 0:01:41]} 21. Nxe4 {
[%emt 0:05:12]} fxe4 {[%emt 0:00:13]} 22. Qe2 {[%emt 0:00:27]} Qg2 {[%emt 0:00:
00]} 23. Qf1 {[%emt 0:07:21]} Qf3 {[%emt 0:10:44]} 24. Be3 {[%emt 0:04:32]}
Rab8 {[%emt 0:04:49]} 25. b3 {[%emt 0:02:38]} Nf6 {[%emt 0:03:10]} 26. h3 {
[%emt 0:02:12]} Nh5 {[%emt 0:01:33]} 27. Rg1 {[%emt 0:01:27]} Rf7 {[%emt 0:00:
00]} 28. Kd2 {[%emt 0:04:37]} Nf6 {[%emt 0:03:59]} 29. Qe2 {[%emt 0:01:34]} Nd7
{[%emt 0:03:01]} 30. Qxf3 {[%emt 0:00:41]} Rxf3 {[%emt 0:00:08]} 31. Ke2 {
[%emt 0:04:02]} Rf7 {[%emt 0:01:17]} 32. c4 {[%emt 0:00:46]} Nb6 {[%emt 0:00:
00]} 33. c5 {[%emt 0:00:28]} Nc8 {[%emt 0:01:07]} 34. Rc3 {[%emt 0:04:55]} Kf8
{[%emt 0:02:59]} 35. Rb1 {[%emt 0:01:51]} Ke8 {[%emt 0:02:09]} 36. b4 {[%emt 0:
00:00]} Ne7 {[%emt 0:01:56]} 37. b5 {[%emt 0:01:50]} Nc6 {[%emt 0:03:58]} 38.
Ra3 {[%emt 0:02:15]} h6 {[%emt 0:04:31]} 39. Ra6 {[%emt 0:01:16]} Nd8 {[%emt 0:
00:00]} 40. Bf4 {[%emt 0:00:27]} Rc8 {[%emt 0:02:03]} 41. h4 {[%emt 0:31:08]}
Rb7 {[%emt 0:30:58]} 42. a4 {[%emt 0:00:00]} Nc6 {[%emt 0:00:00]} 43. Rd1 {
[%emt 0:00:00]} Nd8 {[%emt 0:00:00]} 44. c6 {[%emt 0:00:00]} Rf7 {[%emt 0:00:
00]} 45. Bd6 {[%emt 0:00:00]} g6 {[%emt 0:00:00]} 46. Bf4 {[%emt 0:00:00]} h5 {
[%emt 0:00:00]} 47. c7 {[%emt 0:00:00]} Rfxc7 {[%emt 0:00:00]} 48. Bxc7 {
[%emt 0:00:00]} Rxc7 {[%emt 0:00:00]} 49. a5 {[%emt 0:00:00]} Kd7 {[%emt 0:00:
00]} 50. b6 {[%emt 0:00:00]} axb6 {[%emt 0:00:00]} 51. axb6 {[%emt 0:00:00]}
Rb7 {[%emt 0:00:00]} 52. Ra7 {[%emt 0:00:00]} Kc8 {[%emt 0:00:00]} 53. Rc1+ {
[%emt 0:00:00]} Kb8 {[%emt 0:00:00]} 54. Rxb7+ {[%emt 0:00:00]} Kxb7 {[%emt 0:
00:00]} 55. Ke3 {[%emt 0:00:00]} Kxb6 {[%emt 0:00:00]} 56. Kf4 {[%emt 0:00:00]}
Nc6 {[%emt 0:00:00]} 57. Ke3 {[%emt 0:00:00]} Kc7 {[%emt 0:00:00]} 58. Ra1 {
[%emt 0:00:00]} Kd7 {[%emt 0:00:00]} 59. Ra6 {[%emt 0:00:00]} Ne7 {[%emt 0:00:
00]} 60. Kf4 {[%emt 0:02:37]} Nc6 {[%emt 0:01:22]} 61. Ra4 {[%emt 0:01:27]} Ke7
{[%emt 0:01:32]} 62. Kg5 {[%emt 0:00:45]} e5 {[%emt 0:01:54]} 63. dxe5 {
[%emt 0:00:36]} Nxe5 {[%emt 0:00:10]} 64. Kf4 {[%emt 0:03:27]} Nd3+ {[%emt 0:
00:00]} 65. Ke3 {[%emt 0:01:09]} Ne5 {[%emt 0:02:10]} 66. Ra6 {[%emt 0:01:22]}
Kf7 {[%emt 0:01:19]} 67. Kd4 {[%emt 0:01:02]} Ng4 {[%emt 0:01:05]} 68. Ra2 {
[%emt 0:00:40]} Ke6 {[%emt 0:00:34]} 69. Rb2 {[%emt 0:00:40]} Nf6 {[%emt 0:00:
00]} 70. Rb8 {[%emt 0:01:02]} Kf5 {[%emt 0:00:35]} 71. Rf8 {[%emt 0:00:28]} Ke6
{[%emt 0:00:59]} 72. Ra8 {[%emt 0:00:24]} Ng4 {[%emt 0:00:36]} 73. Ra2 {
[%emt 0:00:26]} Nf6 {[%emt 0:00:10]} 74. Ra6+ {[%emt 0:00:44]} Kf5 {[%emt 0:00:
00]} 75. Ra8 {[%emt 0:00:23]} Ke6 {[%emt 0:00:34]} 76. Ra2 {[%emt 0:00:31]} Kf5
{[%emt 0:00:24]} 77. Ra6 {[%emt 0:00:42]} Ng4 {[%emt 0:00:23]} 78. Ra8 {
[%emt 0:00:27]} Nf6 {[%emt 0:00:23]} 79. Ra7 {[%emt 0:00:32]} Ke6 {[%emt 0:00:
00]} 80. Rg7 {[%emt 0:00:32]} Kf5 {[%emt 0:00:18]} 81. Re7 {[%emt 0:00:33]} Ng4
{[%emt 0:00:41]} 82. Kxd5 {[%emt 0:00:21]} Nxf2 {[%emt 0:01:00]} 83. Rf7+ {
[%emt 0:00:10]} Kg4 {[%emt 0:00:06]} 84. Rxf2 {[%emt 0:00:09]} Kxg3 {[%emt 0:
00:00]} 85. Rf6 {[%emt 0:00:16]} e3 {[%emt 0:00:51]} 86. Rxg6+ {[%emt 0:00:03]}
Kxh4 {[%emt 0:00:10]} 87. Re6 {[%emt 0:01:15]} e2 {[%emt 0:01:07]} 88. Rxe2 {
[%emt 0:00:02]} Kg3 {[%emt 0:00:07]} 89. Ke4 {[%emt 0:00:34]} h4 {[%emt 0:00:
00]} 90. Re3+ {[%emt 0:00:18]} Kg2 {[%emt 0:00:19]} 91. Kf4 {[%emt 0:01:01]} h3
{[%emt 0:00:45]} 92. Re2+ {[%emt 0:00:17]} Kg1 {[%emt 0:01:04]} 93. Kg3 {
[%emt 0:00:08]} Kf1 {[%emt 0:00:20]} 94. Ra2 {[%emt 0:00:09]} h2 {[%emt 0:00:
00]} 95. Kxh2 {[%emt 0:00:12]} 1-0

[Event "44th Chess Olympiad Open 2022"]
[Site "Chennai"]
[Date "2022.08.08"]
[Round "10.71"]
[White "Njau, Albert"]
[Black "Alharthi, Ahmed Mohammed A"]
[Result "1-0"]
[WhiteElo "1842"]
[BlackElo "1935"]
[Annotator "NA RC"]
[PlyCount "71"]
[EventDate "2022.??.??"]
[TimeControl "60"]

1. e4 {[%emt 0:00:09]} d5 {[%emt 0:00:11]} 2. exd5 {[%emt 0:00:09]} Nf6 {
[%emt 0:00:28]} 3. Nc3 {[%emt 0:00:56]} Nxd5 {[%emt 0:01:33]} 4. Nf3 {[%emt 0:
00:00]} Bf5 {[%emt 0:03:19]} 5. Nxd5 {[%emt 0:08:19]} Qxd5 {[%emt 0:00:05]} 6.
Be2 {[%emt 0:00:11]} Nc6 {[%emt 0:05:44]} 7. O-O {[%emt 0:02:19]} e5 {[%emt 0:
00:00]} 8. Re1 {[%emt 0:00:46]} O-O-O {[%emt 0:08:07]} 9. d3 {[%emt 0:05:43]}
f6 {[%emt 0:05:37]} 10. Be3 {[%emt 0:07:17]} g5 {[%emt 0:05:59]} 11. Nd2 {
[%emt 0:04:34]} Kb8 {[%emt 0:05:45]} 12. Bf3 {[%emt 0:02:59]} Qe6 {[%emt 0:00:
00]} 13. a3 {[%emt 0:10:24]} Be7 {[%emt 0:13:04]} 14. b4 {[%emt 0:06:49]} h5 {
[%emt 0:05:08]} 15. Qb1 {[%emt 0:10:25]} h4 {[%emt 0:05:50]} 16. b5 {[%emt 0:
00:00]} Nd4 {[%emt 0:00:55]} 17. Be4 {[%emt 0:00:25]} h3 {[%emt 0:02:49]} 18.
Bxd4 {[%emt 0:12:28]} Rxd4 {[%emt 0:07:26]} 19. Qb3 {[%emt 0:04:05]} Qc8 {
[%emt 0:05:22]} 20. g3 {[%emt 0:01:07]} Bxe4 {[%emt 0:02:33]} 21. Rxe4 {
[%emt 0:00:32]} Bc5 {[%emt 0:01:36]} 22. Rae1 {[%emt 0:03:30]} Qf5 {[%emt 0:00:
00]} 23. Rxd4 {[%emt 0:00:41]} Bxd4 {[%emt 0:00:22]} 24. Re2 {[%emt 0:00:08]}
Qg4 {[%emt 0:00:43]} 25. Kf1 {[%emt 0:00:28]} Bc5 {[%emt 0:03:33]} 26. Qc4 {
[%emt 0:02:00]} Qd4 {[%emt 0:01:12]} 27. Qxd4 {[%emt 0:00:28]} Bxd4 {[%emt 0:
00:00]} 28. g4 {[%emt 0:00:12]} Rh4 {[%emt 0:00:59]} 29. Re4 {[%emt 0:00:24]}
Kc8 {[%emt 0:01:39]} 30. Nf3 {[%emt 0:00:58]} Rh8 {[%emt 0:01:39]} 31. Nxd4 {
[%emt 0:00:32]} exd4 {[%emt 0:00:05]} 32. Rxd4 {[%emt 0:01:50]} Re8 {[%emt 0:
00:00]} 33. f3 {[%emt 0:01:50]} Re5 {[%emt 0:00:51]} 34. a4 {[%emt 0:01:11]}
Rc5 {[%emt 0:00:52]} 35. c4 {[%emt 0:01:38]} a6 {[%emt 0:00:41]} 36. Kf2 {
[%emt 0:00:21]} 1-0

[Event "44th Chess Olympiad Open 2022"]
[Site "Chennai"]
[Date "2022.08.08"]
[Round "10.71"]
[White "Mdoe, Yusuf"]
[Black "Alrehaili, Ahmed Abdullah S"]
[Result "0-1"]
[WhiteElo "1722"]
[BlackElo "1986"]
[Annotator "NA RC"]
[PlyCount "88"]
[EventDate "2022.??.??"]
[TimeControl "60"]

1. c4 {[%emt 0:00:09]} Nf6 {[%emt 0:00:06]} 2. g3 {[%emt 0:00:11]} g6 {[%emt 0:
00:00]} 3. Bg2 {[%emt 0:00:08]} Bg7 {[%emt 0:00:11]} 4. Nc3 {[%emt 0:00:08]}
O-O {[%emt 0:00:21]} 5. d4 {[%emt 0:00:46]} d6 {[%emt 0:00:21]} 6. Nf3 {
[%emt 0:00:36]} Nc6 {[%emt 0:00:32]} 7. O-O {[%emt 0:00:59]} Bg4 {[%emt 0:00:
00]} 8. h3 {[%emt 0:02:45]} Bxf3 {[%emt 0:00:02]} 9. Bxf3 {[%emt 0:00:21]} Nd7
{[%emt 0:00:02]} 10. e3 {[%emt 0:01:55]} e5 {[%emt 0:00:23]} 11. Ne2 {[%emt 0:
00:00]} Rb8 {[%emt 0:10:59]} 12. Rb1 {[%emt 0:01:12]} Qf6 {[%emt 0:08:41]} 13.
Bg2 {[%emt 0:00:21]} exd4 {[%emt 0:01:09]} 14. Bxc6 {[%emt 0:07:08]} bxc6 {
[%emt 0:00:04]} 15. exd4 {[%emt 0:00:49]} Qe6 {[%emt 0:01:09]} 16. b3 {[%emt 0:
00:00]} Qxh3 {[%emt 0:00:37]} 17. Nf4 {[%emt 0:01:15]} Qf5 {[%emt 0:00:08]} 18.
Bb2 {[%emt 0:01:19]} Rfe8 {[%emt 0:01:03]} 19. Re1 {[%emt 0:04:40]} h5 {
[%emt 0:00:32]} 20. Ng2 {[%emt 0:01:49]} Nf6 {[%emt 0:01:38]} 21. f3 {[%emt 0:
00:00]} Rxe1+ {[%emt 0:00:31]} 22. Nxe1 {[%emt 0:01:39]} Qh3 {[%emt 0:00:10]}
23. Kf2 {[%emt 0:01:33]} h4 {[%emt 0:01:11]} 24. gxh4 {[%emt 0:02:12]} Re8 {
[%emt 0:00:45]} 25. Ng2 {[%emt 0:08:15]} Nh5 {[%emt 0:00:02]} 26. Qd3 {[%emt 0:
00:00]} Qg3+ {[%emt 0:02:22]} 27. Kf1 {[%emt 0:00:34]} Qxg2+ {[%emt 0:00:03]}
28. Kxg2 {[%emt 0:01:06]} Nf4+ {[%emt 0:00:01]} 29. Kf1 {[%emt 0:02:31]} Nxd3 {
[%emt 0:00:02]} 30. Ba3 {[%emt 0:00:38]} Bxd4 {[%emt 0:00:16]} 31. Rd1 {
[%emt 0:01:06]} Bc5 {[%emt 0:01:15]} 32. b4 {[%emt 0:01:18]} Nxb4 {[%emt 0:00:
00]} 33. Bxb4 {[%emt 0:01:12]} Bxb4 {[%emt 0:00:02]} 34. Rb1 {[%emt 0:00:07]}
Bc5 {[%emt 0:00:21]} 35. Rb7 {[%emt 0:00:39]} Bb6 {[%emt 0:00:01]} 36. a4 {
[%emt 0:01:17]} a5 {[%emt 0:00:02]} 37. Kg2 {[%emt 0:00:51]} Kf8 {[%emt 0:00:
00]} 38. Kg3 {[%emt 0:00:40]} Ke7 {[%emt 0:00:02]} 39. Kg4 {[%emt 0:00:36]} Kd7
{[%emt 0:00:17]} 40. Kg5 {[%emt 0:01:34]} Re5+ {[%emt 0:00:02]} 41. Kf4 {
[%emt 0:32:45]} Kc8 {[%emt 0:03:08]} 42. Rxb6 {[%emt 0:03:02]} cxb6 {[%emt 0:
00:00]} 43. Kg4 {[%emt 0:00:32]} Rc5 {[%emt 0:00:07]} 44. f4 {[%emt 0:01:15]}
f6 {[%emt 0:00:02]} 0-1

[Event "44th Chess Olympiad Open 2022"]
[Site "Chennai"]
[Date "2022.08.08"]
[Round "10.72"]
[White "Njoroge, Martin"]
[Black "de Araujo, Helder"]
[Result "1/2-1/2"]
[WhiteElo "1973"]
[BlackElo "1742"]
[Annotator "NA RC"]
[PlyCount "110"]
[EventDate "2022.??.??"]
[TimeControl "60"]

1. d4 {[%emt 0:03:48]} Nf6 {[%emt 0:00:15]} 2. c4 {[%emt 0:00:04]} e6 {[%emt 0:
00:00]} 3. Nf3 {[%emt 0:03:21]} d5 {[%emt 0:01:29]} 4. e3 {[%emt 0:01:16]} c5 {
[%emt 0:02:06]} 5. Be2 {[%emt 0:00:39]} dxc4 {[%emt 0:00:17]} 6. Bxc4 {[%emt 0:
00:00]} cxd4 {[%emt 0:00:29]} 7. exd4 {[%emt 0:00:15]} Bb4+ {[%emt 0:00:24]} 8.
Nc3 {[%emt 0:01:08]} O-O {[%emt 0:01:05]} 9. O-O {[%emt 0:00:10]} a6 {[%emt 0:
00:00]} 10. Bg5 {[%emt 0:02:19]} Nbd7 {[%emt 0:01:23]} 11. Qe2 {[%emt 0:01:51]}
b5 {[%emt 0:00:46]} 12. Bb3 {[%emt 0:00:32]} Bb7 {[%emt 0:02:16]} 13. Rad1 {
[%emt 0:03:14]} Bxc3 {[%emt 0:03:28]} 14. bxc3 {[%emt 0:01:29]} Qc7 {[%emt 0:
00:00]} 15. Rd3 {[%emt 0:09:30]} Ne4 {[%emt 0:02:20]} 16. Re3 {[%emt 0:01:36]}
Nxc3 {[%emt 0:07:18]} 17. Qb2 {[%emt 0:07:10]} Rac8 {[%emt 0:03:05]} 18. Ne5 {
[%emt 0:01:07]} Nxe5 {[%emt 0:06:11]} 19. dxe5 {[%emt 0:01:05]} h6 {[%emt 0:00:
00]} 20. Bf4 {[%emt 0:08:05]} Nd5 {[%emt 0:01:59]} 21. Bxd5 {[%emt 0:00:19]}
Bxd5 {[%emt 0:00:41]} 22. Rg3 {[%emt 0:00:13]} Kh8 {[%emt 0:02:50]} 23. Rc1 {
[%emt 0:12:10]} Qa5 {[%emt 0:07:13]} 24. Ra3 {[%emt 0:02:09]} Rc2 {[%emt 0:00:
00]} 25. Rxa5 {[%emt 0:00:17]} Rxb2 {[%emt 0:00:10]} 26. Rxa6 {[%emt 0:00:16]}
Rxa2 {[%emt 0:00:10]} 27. Rxa2 {[%emt 0:01:23]} Bxa2 {[%emt 0:00:12]} 28. Bd2 {
[%emt 0:00:44]} Rd8 {[%emt 0:01:13]} 29. Bb4 {[%emt 0:01:03]} Rd4 {[%emt 0:00:
00]} 30. Bd6 {[%emt 0:01:06]} Kh7 {[%emt 0:05:33]} 31. f3 {[%emt 0:01:51]} Ra4
{[%emt 0:02:33]} 32. Ra1 {[%emt 0:01:37]} Kg6 {[%emt 0:01:01]} 33. Kf2 {
[%emt 0:00:18]} Kf5 {[%emt 0:00:37]} 34. Ke3 {[%emt 0:00:43]} f6 {[%emt 0:00:
00]} 35. exf6 {[%emt 0:02:02]} gxf6 {[%emt 0:00:58]} 36. g4+ {[%emt 0:03:30]}
Kg6 {[%emt 0:00:57]} 37. Bf8 {[%emt 0:01:44]} Kf7 {[%emt 0:01:15]} 38. Bc5 {
[%emt 0:03:43]} e5 {[%emt 0:00:26]} 39. h4 {[%emt 0:05:10]} f5 {[%emt 0:04:26]}
40. gxf5 {[%emt 0:01:06]} Kf6 {[%emt 0:00:23]} 41. Bf8 {[%emt 0:32:00]} Kxf5 {
[%emt 0:31:05]} 42. h5 {[%emt 0:03:53]} Ra8 {[%emt 0:01:52]} 43. Bb4 {[%emt 0:
00:00]} Kg5 {[%emt 0:00:35]} 44. Bc3 {[%emt 0:00:43]} Kxh5 {[%emt 0:00:29]} 45.
Bxe5 {[%emt 0:02:58]} b4 {[%emt 0:00:17]} 46. Ke4 {[%emt 0:00:59]} b3 {[%emt 0:
00:00]} 47. Kf5 {[%emt 0:00:28]} Rf8+ {[%emt 0:00:59]} 48. Bf6 {[%emt 0:05:03]}
Rxf6+ {[%emt 0:00:09]} 49. Kxf6 {[%emt 0:00:30]} Kh4 {[%emt 0:00:13]} 50. Kg6 {
[%emt 0:02:43]} Kg3 {[%emt 0:00:40]} 51. Kxh6 {[%emt 0:00:15]} Kxf3 {[%emt 0:
00:00]} 52. Re1 {[%emt 0:01:12]} Kf2 {[%emt 0:00:15]} 53. Rh1 {[%emt 0:00:16]}
Ke3 {[%emt 0:00:37]} 54. Rh3+ {[%emt 0:00:08]} Kd2 {[%emt 0:00:14]} 55. Rxb3 {
[%emt 0:00:19]} Bxb3 {[%emt 0:00:14]} 1/2-1/2

[Event "44th Chess Olympiad Open 2022"]
[Site "Chennai"]
[Date "2022.08.08"]
[Round "10.72"]
[White "Namale, Ben Nguku"]
[Black "dos Reis, Tito"]
[Result "1-0"]
[WhiteElo "1962"]
[BlackElo "1658"]
[Annotator "NA RC"]
[PlyCount "103"]
[EventDate "2022.??.??"]
[TimeControl "60"]

1. d4 {[%emt 0:00:01]} d6 {[%emt 0:00:16]} 2. e4 {[%emt 0:00:48]} Nf6 {[%emt 0:
00:00]} 3. Nc3 {[%emt 0:00:04]} c6 {[%emt 0:00:16]} 4. f4 {[%emt 0:00:51]} Qa5
{[%emt 0:01:19]} 5. Bd2 {[%emt 0:04:25]} Qc7 {[%emt 0:02:25]} 6. e5 {[%emt 0:
00:00]} Ng8 {[%emt 0:02:47]} 7. Bd3 {[%emt 0:01:52]} g6 {[%emt 0:00:40]} 8. Qe2
{[%emt 0:03:05]} d5 {[%emt 0:02:16]} 9. Nf3 {[%emt 0:02:39]} Bg4 {[%emt 0:00:
00]} 10. h3 {[%emt 0:00:09]} Bxf3 {[%emt 0:00:26]} 11. Qxf3 {[%emt 0:00:01]} e6
{[%emt 0:00:30]} 12. g4 {[%emt 0:00:34]} Ne7 {[%emt 0:00:53]} 13. f5 {[%emt 0:
00:00]} Nd7 {[%emt 0:01:34]} 14. O-O-O {[%emt 0:01:19]} O-O-O {[%emt 0:03:15]}
15. fxe6 fxe6 {[%emt 0:01:22]} 16. Qf7 {[%emt 0:00:47]} Kb8 {[%emt 0:03:15]}
17. Bg5 {[%emt 0:02:24]} Nb6 {[%emt 0:00:55]} 18. Qxe6 {[%emt 0:01:35]} Qd7 {
[%emt 0:09:47]} 19. Qf6 {[%emt 0:09:13]} Rg8 {[%emt 0:01:31]} 20. e6 {[%emt 0:
00:00]} Qe8 {[%emt 0:00:43]} 21. Rhf1 {[%emt 0:00:12]} h6 {[%emt 0:02:35]} 22.
Bf4+ {[%emt 0:04:31]} Ka8 {[%emt 0:00:16]} 23. Bc7 {[%emt 0:00:33]} Rc8 {
[%emt 0:06:02]} 24. Be5 {[%emt 0:07:15]} Bg7 {[%emt 0:01:57]} 25. Qf4 {[%emt 0:
00:00]} g5 {[%emt 0:06:55]} 26. Qe3 {[%emt 0:05:49]} Bxe5 {[%emt 0:09:27]} 27.
Qxe5 {[%emt 0:00:24]} Ng6 {[%emt 0:03:41]} 28. Bxg6 {[%emt 0:01:51]} Rxg6 {
[%emt 0:00:20]} 29. Rf6 {[%emt 0:03:05]} Nc4 {[%emt 0:00:43]} 30. Qf5 {[%emt 0:
00:00]} Rg7 {[%emt 0:02:13]} 31. Re1 {[%emt 0:00:55]} Nd6 {[%emt 0:02:11]} 32.
Qe5 {[%emt 0:00:37]} Nc4 {[%emt 0:01:23]} 33. Qg3 {[%emt 0:00:41]} Rg6 {
[%emt 0:02:22]} 34. Rxg6 {[%emt 0:01:38]} Qxg6 {[%emt 0:00:15]} 35. b3 {
[%emt 0:03:59]} Na3 {[%emt 0:00:46]} 36. Kb2 {[%emt 0:00:53]} Nb5 {[%emt 0:00:
00]} 37. Nxb5 {[%emt 0:03:10]} cxb5 {[%emt 0:00:26]} 38. Re2 {[%emt 0:00:37]}
Qf6 {[%emt 0:01:58]} 39. Qe5 {[%emt 0:00:27]} Qe7 {[%emt 0:11:36]} 40. Qxd5 {
[%emt 0:04:24]} Rd8 {[%emt 0:00:08]} 41. Qe5 {[%emt 0:31:01]} b4 {[%emt 0:00:
00]} 42. d5 {[%emt 0:05:44]} a6 {[%emt 0:05:31]} 43. Re4 {[%emt 0:04:19]} Ka7 {
[%emt 0:06:04]} 44. Rc4 {[%emt 0:02:36]} Rd6 {[%emt 0:03:13]} 45. Qd4+ {
[%emt 0:00:50]} Kb8 {[%emt 0:02:42]} 46. Rxb4 {[%emt 0:00:49]} b5 {[%emt 0:00:
00]} 47. a4 {[%emt 0:02:07]} Qb7 {[%emt 0:00:51]} 48. c4 {[%emt 0:01:45]} Ka8 {
[%emt 0:01:04]} 49. axb5 {[%emt 0:00:31]} Qe7 {[%emt 0:00:49]} 50. c5 {[%emt 0:
00:00]} Rd8 {[%emt 0:00:58]} 51. bxa6 {[%emt 0:00:18]} Qc7 {[%emt 0:00:52]} 52.
d6 {[%emt 0:00:18]} 1-0

[Event "44th Chess Olympiad Open 2022"]
[Site "Chennai"]
[Date "2022.08.08"]
[Round "10.72"]
[White "da Conceicao, Marcos"]
[Black "Oluka Robert Mcligeyo"]
[Result "0-1"]
[WhiteElo "1713"]
[BlackElo "1823"]
[Annotator "NA RC"]
[PlyCount "78"]
[EventDate "2022.??.??"]
[TimeControl "60"]

1. e4 {[%emt 0:00:28]} g6 {[%emt 0:00:20]} 2. Nc3 {[%emt 0:01:16]} Bg7 {
[%emt 0:00:07]} 3. d4 {[%emt 0:00:27]} c6 {[%emt 0:00:05]} 4. e5 {[%emt 0:00:
00]} d5 {[%emt 0:00:07]} 5. Be3 {[%emt 0:05:08]} h5 {[%emt 0:00:14]} 6. h4 {
[%emt 0:00:34]} Bf5 {[%emt 0:00:08]} 7. Bd3 {[%emt 0:01:04]} Bxd3 {[%emt 0:00:
00]} 8. Qxd3 {[%emt 0:00:12]} e6 {[%emt 0:00:06]} 9. O-O-O {[%emt 0:00:19]} Nd7
{[%emt 0:06:13]} 10. Nh3 {[%emt 0:01:20]} Qc7 {[%emt 0:03:18]} 11. f4 {[%emt 0:
00:00]} Nh6 {[%emt 0:00:29]} 12. Ng5 {[%emt 0:03:49]} O-O-O {[%emt 0:00:09]}
13. Na4 {[%emt 0:02:16]} Kb8 {[%emt 0:01:00]} 14. Qb3 {[%emt 0:02:00]} Rhf8 {
[%emt 0:02:15]} 15. Rd3 {[%emt 0:00:00]} Ng4 {[%emt 0:02:51]} 16. Bg1 {[%emt 0:
00:00]} Rde8 {[%emt 0:00:42]} 17. g3 {[%emt 0:07:25]} f6 {[%emt 0:07:27]} 18.
Nf3 {[%emt 0:00:11]} fxe5 {[%emt 0:00:24]} 19. dxe5 {[%emt 0:01:26]} c5 {
[%emt 0:01:26]} 20. Rc3 {[%emt 0:05:34]} c4 {[%emt 0:01:47]} 21. Qa3 {[%emt 0:
00:00]} Rc8 {[%emt 0:17:11]} 22. b4 {[%emt 0:01:24]} b6 {[%emt 0:04:21]} 23.
Nd4 {[%emt 0:00:40]} Qb7 {[%emt 0:06:52]} 24. Be3 {[%emt 0:07:37]} Rfe8 {
[%emt 0:20:26]} 25. Rd1 {[%emt 0:00:42]} Bf8 {[%emt 0:00:12]} 26. Qb2 {[%emt 0:
00:00]} b5 {[%emt 0:01:50]} 27. Nc5 {[%emt 0:03:17]} Nxc5 {[%emt 0:00:09]} 28.
bxc5 {[%emt 0:03:29]} Bxc5 {[%emt 0:03:18]} 29. Bg1 {[%emt 0:01:44]} b4 {
[%emt 0:01:32]} 30. Rf3 {[%emt 0:00:38]} Ka8 {[%emt 0:01:24]} 31. Ne2 {[%emt 0:
00:00]} d4 {[%emt 0:04:16]} 32. Rff1 {[%emt 0:00:41]} d3 {[%emt 0:00:20]} 33.
Nd4 {[%emt 0:01:10]} Qa6 {[%emt 0:09:25]} 34. Kb1 {[%emt 0:01:09]} Red8 {
[%emt 0:01:39]} 35. cxd3 {[%emt 0:04:59]} c3 {[%emt 0:00:14]} 36. Qg2+ {
[%emt 0:00:59]} Kb8 {[%emt 0:00:48]} 37. Nb3 {[%emt 0:02:31]} Bxg1 {[%emt 0:00:
00]} 38. Rc1 {[%emt 0:06:34]} Qxd3+ {[%emt 0:00:32]} 39. Ka1 {[%emt 0:01:49]}
c2 {[%emt 0:00:11]} 0-1